fUSD/lending_fUSD_20250806
["ID","MTS","AMOUNT","RATE_DAILY","PERIOD"]
[377586314,1754448703341,-580.15,0.00036164,14]
[377586315,1754448703351,-606.74,0.00036164,14]
[377586316,1754448703360,-400.0,0.00036164,14]
[377586317,1754448703370,-3610.57,0.00036164,14]
[377586318,1754448703379,-2698.14,0.00036164,14]
[377586319,1754448703388,-881.76,0.00036164,14]
[377586320,1754448703398,-1152.57,0.00036164,14]
[377586321,1754448703407,-958.68,0.00036164,14]
[377586322,1754448703417,-1967.92,0.00036164,14]
[377586323,1754448703428,-400.0,0.00036164,14]
[377586324,1754448703437,-2348.84,0.00036164,14]
[377586325,1754448703447,-826.11,0.00036164,14]
[377586326,1754448703456,-826.95,0.00036164,14]
[377586327,1754448703466,-2097.04,0.00036164,14]
[377586328,1754448703477,-1738.83,0.00036164,14]
[377586329,1754448703487,-468.56,0.00036164,14]
[377586330,1754448703496,-400.0,0.00036164,14]
[377586331,1754448703506,-1550.41,0.00036164,14]
[377586332,1754448703516,-400.0,0.00036164,14]
[377586333,1754448703525,-986.73,0.00036164,14]
[377586334,1754448703537,-400.0,0.00036164,14]
[377586335,1754448703546,-2945.22,0.00036164,14]
[377586336,1754448703556,-2061.05,0.00036164,14]
[377586337,1754448703567,-2744.57,0.00036164,14]
[377586338,1754448703576,-1971.84,0.00036164,14]
[377586339,1754448703586,-522.01,0.00036164,14]
[377586340,1754448703596,-2216.79,0.00036164,14]
[377586341,1754448703605,-1605.08,0.00036164,14]
[377586342,1754448703614,-1022.7,0.00036164,14]
[377586343,1754448703624,-883.72,0.00036164,14]
[377586344,1754448703633,-400.0,0.00036164,14]
[377586345,1754448703642,-2625.94,0.00036164,14]
[377586346,1754448703651,-400.0,0.00036164,14]
[377586347,1754448703660,-1176.86,0.00036164,14]
[377586348,1754448703670,-400.0,0.00036164,14]
[377586349,1754448703680,-2001.07,0.00036164,14]
[377586350,1754448703690,-1132.6,0.00036164,14]
[377586351,1754448703699,-2717.6,0.00036164,14]
[377586352,1754448703709,-1708.89,0.00036164,14]
[377586353,1754448703718,-2209.33,0.00036164,14]
[377586354,1754448703728,-1659.02,0.00036164,14]
[377586355,1754448703739,-400.0,0.00036164,14]
[377586356,1754448703748,-2337.97,0.00036164,14]
[377586357,1754448703758,-1295.16,0.00036164,14]
[377586358,1754448703770,-1513.53,0.00036164,14]
[377586359,1754448703780,-1663.17,0.00036164,14]
[377586360,1754448703790,-2361.68,0.00036164,14]
[377586361,1754448703800,-2090.44,0.00036164,14]
[377586362,1754448703809,-425.69,0.00036164,14]
[377586363,1754448703819,-949.45,0.00036164,14]
[377586364,1754448703828,-400.0,0.00036164,14]
[377586365,1754448703838,-2974.22,0.00036164,14]
[377586366,1754448703848,-468.15,0.00036164,14]
[377586367,1754448703859,-702.26,0.00036164,14]
[377586368,1754448703872,-1198.3,0.00036164,14]
[377586369,1754448703881,-1740.13,0.00036164,14]
[377586370,1754448703891,-2095.59,0.00036164,14]
[377586371,1754448703902,-1148.8,0.00036164,14]
[377586372,1754448703912,-467.46,0.00036164,14]
[377586373,1754448703921,-954.12,0.00036164,14]
[377586374,1754448703931,-2962.89,0.00036164,14]
[377586375,1754448703941,-2021.48,0.00036164,14]
[377586376,1754448703950,-662.22,0.00036164,14]
[377586377,1754448703960,-2546.61,0.00036164,14]
[377586378,1754448703970,-2356.45,0.00036164,14]
[377586379,1754448703981,-504.61,0.00036164,14]
[377586380,1754448703990,-2575.51,0.00036164,14]
[377586381,1754448704003,-400.0,0.00036164,14]
[377586382,1754448704021,-2130.93,0.00036164,14]
[377586383,1754448704153,-423.2,0.00036164,14]
[377586384,1754448704163,-401.04164865,0.00036164,14]
[377586385,1754448704175,-400.0,0.00036164,14]
[377586386,1754448704186,-856.83,0.00036164,14]
[377586387,1754448704196,-1766.95,0.00036164,14]
[377586388,1754448704207,-400.0,0.00036164,14]
[377586389,1754448704218,-400.0,0.00036164,14]
[377586390,1754448704228,-3248.58,0.00036164,14]
[377586391,1754448704237,-5306.84,0.00036164,14]
[377586392,1754448704246,-496.21,0.00036164,14]
[377586393,1754448704256,-547.97,0.00036164,14]
[377586394,1754448704265,-888.56,0.00036164,14]
[377586395,1754448704275,-727.35,0.00036164,14]
[377586396,1754448704285,-3016.17,0.00036164,14]
[377586397,1754448704295,-2668.39,0.00036164,14]
[377586398,1754448704304,-400.0,0.00036164,14]
[377586399,1754448704316,-400.0,0.00036164,14]
[377586400,1754448704325,-3791.14,0.00036164,14]
[377586401,1754448704334,-605.14,0.00036164,14]
[377586402,1754448704344,-2054.01,0.00036164,14]
[377586403,1754448704354,-975.71,0.00036164,14]
[377586404,1754448704365,-400.0,0.00036164,14]
[377586405,1754448704374,-400.0,0.00036164,14]
[377586406,1754448704384,-400.0,0.00036164,14]
[377586407,1754448704393,-3485.41,0.00036164,14]
[377586408,1754448704403,-2009.81,0.00036164,14]
[377586409,1754448704413,-2179.98,0.00036164,14]
[377586410,1754448704424,-400.0,0.00036164,14]
[377586411,1754448704433,-400.0,0.00036164,14]
[377586412,1754448704442,-400.0,0.00036164,14]
[377586413,1754448704451,-400.0,0.00036164,14]
[377586414,1754448704461,-1517.52,0.00036164,14]
[377586415,1754448704470,-1388.31,0.00036164,14]
[377586416,1754448704480,-1920.97,0.00036164,14]
[377586417,1754448704489,-957.04,0.00036164,14]
[377586418,1754448704499,-400.0,0.00036164,14]
[377586419,1754448704508,-400.0,0.00036164,2]
[377586420,1754448704518,-615.01,0.00036164,14]
[377586421,1754448704527,-2558.14,0.00036164,14]
[377586422,1754448704537,-1537.42,0.00036164,14]
[377586423,1754448704546,-410.84,0.00036164,14]
[377586424,1754448704556,-2660.98,0.00036164,14]
[377586425,1754448704565,-1497.84,0.00036164,14]
[377586426,1754448704575,-1672.02,0.00036164,14]
[377586427,1754448704584,-1561.14,0.00036164,14]
[377586428,1754448704593,-400.0,0.00036164,14]
[377586429,1754448704603,-1718.51,0.00036164,14]
[377586430,1754448704613,-2448.42,0.00036164,14]
[377586431,1754448704622,-400.0,0.00036164,14]
[377586432,1754448704631,-2286.3,0.00036164,14]
[377586433,1754448704641,-2354.23,0.00036164,14]
[377586434,1754448704650,-2817.66,0.00036164,14]
[377586435,1754448704659,-1193.12,0.00036164,14]
[377586436,1754448704668,-818.29,0.00036164,2]
[377586437,1754448704677,-400.0,0.00036164,14]
[377586438,1754448704688,-400.0,0.00036164,14]
[377586439,1754448704697,-167.86,0.00036164,14]
[377586440,1754448704706,-2306.54,0.00036164,14]
[377586441,1754448704715,-12433.87,0.00036164,14]
[377586442,1754448704724,-775.18,0.00036164,14]
[377586443,1754448704734,-400.0,0.00036164,14]
[377586444,1754448704743,-1789.7,0.00036164,14]
[377586445,1754448704753,-751.56,0.00036164,14]
[377586446,1754448704762,-307.26137595,0.00036172,10]
[377586447,1754448704771,-1000.0,0.00036173,7]
[377586448,1754448704782,-150.0,0.00036191,2]
[377586449,1754448704791,-150.0,0.00036194,2]
[377586450,1754448704801,-307.14489505,0.00036199,10]
[377586451,1754448704810,-150.0,0.00036215,2]
[377586452,1754448704821,-150.0,0.00036233,2]
[377586453,1754448704830,-150.0,0.00036235,2]
[377586454,1754448704839,-150.0,0.00036238,2]
[377586455,1754448704849,-1000.0,0.00036243,7]
[377586456,1754448704859,-150.0,0.00036259,2]
[377586457,1754448704873,-150.0,0.0003626,2]
[377586458,1754448704882,-150.0,0.00036267,2]
[377586459,1754448704891,-150.0,0.0003627,2]
[377586460,1754448704901,-150.0,0.00036294,2]
[377586461,1754448704910,-159.0,0.000363,41]
[377586462,1754448704920,-150.0,0.00036301,2]
[377586463,1754448704929,-152.0,0.00036303,9]
[377586464,1754448704939,-756.15421009,0.00036338,15]
[377586465,1754448704948,-150.0,0.00036343,7]
[377586466,1754448704958,-150.0,0.00036369,2]
[377586467,1754448704967,-150.0,0.0003639,2]
[377586468,1754448704976,-150.0,0.00036393,2]
[377586469,1754448704985,-150.0,0.00036404,2]
[377586470,1754448704995,-150.0,0.0003641,2]
[377586471,1754448705004,-150.0,0.00036411,2]
[377586472,1754448705013,-150.0,0.00036417,2]
[377586473,1754448705023,-1000.0,0.00036434,7]
[377586474,1754448705033,-300.0,0.00036437,10]
[377586475,1754448705045,-671.71061285,0.00036437,10]
[377586476,1754448705056,-150.0,0.00036437,2]
[377586477,1754448705065,-1106.87216,0.00036438,14]
[377586478,1754448705074,-887.819081,0.00036438,14]
[377586479,1754448705083,-1255.615788,0.00036438,14]
[377586480,1754448705092,-192.679796,0.00036438,14]
[377586481,1754448705103,-1721.73,0.00036438,14]
[377586482,1754448705112,-151.0,0.00036438,7]
[377586483,1754448705124,-151.0,0.00036438,7]
[377586484,1754448705134,-151.0,0.00036438,7]
[377586485,1754448705144,-160.207956,0.00036438,14]
[377586486,1754448705154,-151.0,0.00036438,7]
[377586487,1754448705164,-155.350478,0.00036438,14]
[377586488,1754448705173,-170.172343,0.00036438,7]
[377586489,1754448705183,-160.207955,0.00036438,14]
[377586490,1754448705194,-242.340368,0.00036438,7]
[377586491,1754448705203,-242.340368,0.00036438,7]
[377586492,1754448705212,-400.0,0.00036438,14]
[377586493,1754448705222,-400.0,0.00036438,14]
[377586494,1754448705231,-400.0,0.00036438,14]
[377586495,1754448705242,-400.0,0.00036438,14]
[377586496,1754448705251,-400.0,0.00036438,14]
[377586497,1754448705262,-160.207954,0.00036438,14]
[377586498,1754448705271,-400.0,0.00036438,14]
[377586499,1754448705283,-400.0,0.00036438,14]
[377586500,1754448705292,-400.92069642,0.00036438,14]
[377586501,1754448705302,-400.0,0.00036438,14]
[377586502,1754448705311,-400.0,0.00036438,14]
[377586503,1754448705320,-155.35048,0.00036438,14]
[377586504,1754448705330,-400.0,0.00036438,14]
[377586505,1754448705339,-400.0,0.00036438,14]
[377586506,1754448705348,-400.0,0.00036438,14]
[377586507,1754448705357,-400.0,0.00036438,14]
[377586508,1754448705367,-400.0,0.00036438,14]
[377586509,1754448705376,-400.0,0.00036438,14]
[377586510,1754448705385,-400.0,0.00036438,14]
[377586511,1754448705395,-400.0,0.00036438,14]
[377586512,1754448705405,-400.0,0.00036438,14]
[377586513,1754448705414,-400.0,0.00036438,14]
[377586514,1754448705424,-400.0,0.00036438,14]
[377586515,1754448705433,-400.0,0.00036438,14]
[377586516,1754448705442,-160.207955,0.00036438,14]
[377586517,1754448705450,-400.0,0.00036438,14]
[377586518,1754448705459,-400.0,0.00036438,14]
[377586519,1754448705469,-400.0,0.00036438,14]
[377586520,1754448705478,-400.0,0.00036438,14]
[377586521,1754448705487,-400.0,0.00036438,14]
[377586522,1754448705495,-400.0,0.00036438,14]
[377586523,1754448705505,-155.350478,0.00036438,14]
[377586524,1754448705514,-249.35588535,0.00036438,14]
[377586525,1754448705523,-400.0,0.00036438,14]
[377586526,1754448705533,-400.0,0.00036438,14]
[377586527,1754448705542,-400.0,0.00036438,14]
[377586528,1754448705551,-400.0,0.00036438,14]
[377586529,1754448705561,-1879.66,0.00036438,14]
[377586530,1754448705571,-517.54,0.00036438,14]
[377586531,1754448705581,-400.0,0.00036438,2]
[377586532,1754448705590,-400.0,0.00036438,14]
[377586533,1754448705599,-400.0,0.00036438,14]
[377586534,1754448705607,-400.0,0.00036438,14]
[377586535,1754448705616,-400.0,0.00036438,14]
[377586536,1754448705625,-933.27,0.00036438,14]
[377586537,1754448705635,-400.0,0.00036438,14]
[377586538,1754448705645,-400.0,0.00036438,14]
[377586539,1754448705654,-400.0,0.00036438,14]
[377586540,1754448705663,-708.86,0.00036438,14]
[377586541,1754448705672,-412.42,0.00036438,14]
[377586542,1754448705681,-400.0,0.00036438,14]
[377586543,1754448705691,-401.32418299,0.00036438,14]
[377586544,1754448705700,-400.0,0.00036438,14]
[377586545,1754448705710,-400.0,0.00036438,14]
[377586546,1754448705719,-415.77,0.00036438,14]
[377586547,1754448705728,-1925.55,0.00036438,14]
[377586548,1754448705737,-165.794744,0.00036438,14]
[377586549,1754448705746,-392.13465361,0.00036438,14]
[377586550,1754448705756,-160.207954,0.00036438,14]
[377586551,1754448705766,-866.96,0.00036438,14]
[377586552,1754448705776,-523.82,0.00036438,14]
[377586553,1754448705789,-400.0,0.00036438,14]
[377586554,1754448705799,-400.0,0.00036438,14]
[377586555,1754448705809,-400.0,0.00036438,14]
[377586556,1754448705819,-400.0,0.00036438,14]
[377586557,1754448705828,-1993.73,0.00036438,14]
[377586558,1754448705838,-400.0,0.00036438,14]
[377586559,1754448705847,-478.37,0.00036438,14]
[377586560,1754448705859,-1455.59,0.00036438,14]
[377586561,1754448705869,-400.0,0.00036438,14]
[377586562,1754448705878,-1137.51,0.00036438,14]
[377586563,1754448705887,-374.42015644,0.00036438,14]
[377586564,1754448705897,-400.0,0.00036438,14]
[377586565,1754448705906,-1494.66,0.00036438,14]
[377586566,1754448705915,-2002.12,0.00036438,14]
[377586567,1754448705924,-400.0,0.00036438,14]
[377586568,1754448705935,-400.0,0.00036438,14]
[377586569,1754448705946,-400.0,0.00036438,14]
[377586570,1754448705955,-1040.39,0.00036438,14]
[377586571,1754448705964,-400.0,0.00036438,14]
[377586572,1754448705974,-400.0,0.00036438,14]
[377586573,1754448705982,-400.0,0.00036438,14]
[377586574,1754448705992,-400.0,0.00036438,14]
[377586575,1754448706002,-662.16,0.00036438,14]
[377586576,1754448706011,-400.0,0.00036438,14]
[377586577,1754448706021,-400.0,0.00036438,14]
[377586578,1754448706030,-400.0,0.00036438,14]
[377586579,1754448706039,-400.0,0.00036438,14]
[377586580,1754448706049,-2153.57,0.00036438,14]
[377586581,1754448706058,-400.0,0.00036438,14]
[377586582,1754448706067,-1355.9,0.00036438,14]
[377586583,1754448706077,-904.68,0.00036438,14]
[377586584,1754448706086,-400.0,0.00036438,14]
[377586585,1754448706096,-375.56005845,0.00036438,14]
[377586586,1754448706105,-545.31,0.00036438,14]
[377586587,1754448706114,-400.0,0.00036438,14]
[377586588,1754448706126,-400.0,0.00036438,14]
[377586589,1754448706136,-400.0,0.00036438,14]
[377586590,1754448706146,-400.0,0.00036438,14]
[377586591,1754448706157,-726.19,0.00036438,14]
[377586592,1754448706166,-403.85162682,0.00036438,14]
[377586593,1754448706176,-1848.23,0.00036438,14]
[377586594,1754448706186,-400.0,0.00036438,14]
[377586595,1754448706196,-400.0,0.00036438,14]
[377586596,1754448706206,-837.58,0.00036438,14]
[377586597,1754448706215,-400.0,0.00036438,14]
[377586598,1754448706225,-400.0,0.00036438,14]
[377586599,1754448706234,-426.53,0.00036438,14]
[377586600,1754448706244,-2053.66,0.00036438,14]
[377586601,1754448706252,-400.0,0.00036438,14]
[377586602,1754448706263,-463.84,0.00036438,14]
[377586603,1754448706272,-1680.73,0.00036438,14]
[377586604,1754448706284,-400.0,0.00036438,14]
[377586605,1754448706293,-589.79,0.00036438,14]
[377586606,1754448706302,-400.0,0.00036438,14]
[377586607,1754448706312,-400.0,0.00036438,14]
[377586608,1754448706321,-400.0,0.00036438,5]
[377586609,1754448706330,-485.82,0.00036438,14]
[377586610,1754448706339,-1174.99,0.00036438,14]
[377586611,1754448706348,-151.0,0.00036438,7]
[377586612,1754448706357,-1560.83,0.00036438,14]
[377586613,1754448706366,-1343.09,0.00036438,14]
[377586614,1754448706375,-151.0,0.00036438,7]
[377586615,1754448706385,-400.0,0.00036438,14]
[377586616,1754448706393,-400.0,0.00036438,14]
[377586617,1754448706402,-400.0,0.00036438,14]
[377586618,1754448706411,-400.0,0.00036438,14]
[377586619,1754448706420,-400.0,0.00036438,14]
[377586620,1754448706429,-400.0,0.00036438,14]
[377586621,1754448706438,-400.0,0.00036438,14]
[377586622,1754448706447,-652.79,0.00036438,14]
[377586623,1754448706456,-400.0,0.00036438,14]
[377586624,1754448706464,-807.49,0.00036438,14]
[377586625,1754448706473,-2272.01,0.00036438,14]
[377586626,1754448706482,-439.11,0.00036438,14]
[377586627,1754448706491,-400.0,0.00036438,14]
[377586628,1754448706500,-400.0,0.00036438,14]
[377586629,1754448706509,-1269.54,0.00036438,14]
[377586630,1754448706517,-400.0,0.00036438,14]
[377586631,1754448706526,-400.0,0.00036438,14]
[377586632,1754448706537,-1601.77,0.00036438,14]
[377586633,1754448706547,-400.0,0.00036438,14]
[377586634,1754448706556,-549.88,0.00036438,14]
[377586635,1754448706565,-691.52,0.00036438,14]
[377586636,1754448706574,-400.0,0.00036438,14]
[377586637,1754448706583,-400.0,0.00036438,14]
[377586638,1754448706592,-937.63,0.00036438,14]
[377586639,1754448706601,-1238.53,0.00036438,14]
[377586640,1754448706610,-400.0,0.00036438,14]
[377586641,1754448706619,-758.93,0.00036438,14]
[377586642,1754448706628,-842.35,0.00036438,14]
[377586643,1754448706637,-400.0,0.00036438,14]
[377586644,1754448706646,-1051.66,0.00036438,14]
[377586645,1754448706656,-566.9,0.00036438,14]
[377586646,1754448706665,-1884.93,0.00036438,14]
[377586647,1754448706674,-1133.77,0.00036438,14]
[377586648,1754448706683,-400.0,0.00036438,14]
[377586649,1754448706692,-1135.75,0.00036438,14]
[377586650,1754448706702,-400.0,0.00036438,14]
[377586651,1754448706711,-1340.96,0.00036438,14]
[377586652,1754448706720,-1269.95,0.00036438,14]
[377586653,1754448706730,-1245.02,0.00036438,14]
[377586654,1754448706739,-400.0,0.00036438,14]
[377586655,1754448706748,-400.0,0.00036438,14]
[377586656,1754448706757,-400.0,0.00036438,14]
[377586657,1754448706767,-400.0,0.00036438,14]
[377586658,1754448706777,-400.96,0.00036438,14]
[377586659,1754448706788,-888.4,0.00036438,14]
[377586660,1754448706798,-400.0,0.00036438,14]
[377586661,1754448706808,-1391.51,0.00036438,14]
[377586662,1754448706818,-885.84,0.00036438,14]
[377586663,1754448706827,-400.0,0.00036438,14]
[377586664,1754448706838,-400.0,0.00036438,14]
[377586665,1754448706848,-2022.35,0.00036438,14]
[377586666,1754448706858,-400.0,0.00036438,14]
[377586667,1754448706871,-1485.63,0.00036438,14]
[377586668,1754448706880,-577.94,0.00036438,14]
[377586669,1754448706890,-400.0,0.00036438,14]
[377586670,1754448706900,-2205.6,0.00036438,14]
[377586671,1754448706909,-594.52,0.00036438,14]
[377586672,1754448706921,-307.88393638,0.00036438,14]
[377586673,1754448706931,-400.0,0.00036438,14]
[377586674,1754448706940,-516.69,0.00036438,14]
[377586675,1754448706951,-400.0,0.00036438,14]
[377586676,1754448706961,-400.99,0.00036438,14]
[377586677,1754448706970,-400.0,0.00036438,14]
[377586678,1754448706980,-263.58998336,0.00036438,14]
[377586679,1754448706990,-963.31,0.00036438,14]
[377586680,1754448706999,-400.0,0.00036438,14]
[377586681,1754448707010,-400.0,0.00036438,14]
[377586682,1754448707020,-798.43,0.00036438,14]
[377586683,1754448707029,-400.0,0.00036438,14]
[377586684,1754448707040,-400.0,0.00036438,14]
[377586685,1754448707049,-400.0,0.00036438,14]
[377586686,1754448707059,-825.61,0.00036438,14]
[377586687,1754448707068,-400.0,0.00036438,14]
[377586688,1754448707078,-400.0,0.00036438,14]
[377586689,1754448707088,-528.56828153,0.00036438,14]
[377586690,1754448707097,-425.14,0.00036438,14]
[377586691,1754448707107,-1955.89,0.00036438,14]
[377586692,1754448707116,-400.0,0.00036438,14]
[377586693,1754448707126,-400.0,0.00036438,14]
[377586694,1754448707136,-872.75,0.00036438,14]
[377586695,1754448707146,-672.46,0.00036438,14]
[377586696,1754448707155,-666.07,0.00036438,14]
[377586697,1754448707167,-400.0,0.00036438,7]
[377586698,1754448707179,-400.0,0.00036438,14]
[377586699,1754448707191,-151.0,0.00036438,7]
[377586700,1754448707204,-151.0,0.00036438,7]
[377586701,1754448707214,-2048.4,0.00036438,14]
[377586702,1754448707224,-1186.37,0.00036438,14]
[377586703,1754448707234,-1867.25,0.00036438,14]
[377586704,1754448707243,-400.0,0.00036438,14]
[377586705,1754448707252,-400.0,0.00036438,14]
[377586706,1754448707262,-362.0,0.00036438,14]
[377586707,1754448707272,-400.0,0.00036438,14]
[377586708,1754448707282,-400.0,0.00036438,14]
[377586709,1754448707292,-1486.37,0.00036438,14]
[377586710,1754448707302,-1282.75,0.00036438,14]
[377586711,1754448707312,-400.0,0.00036438,14]
[377586712,1754448707322,-620.41,0.00036438,14]
[377586713,1754448707332,-426.54,0.00036438,14]
[377586714,1754448707341,-1685.19,0.00036438,14]
[377586715,1754448707351,-546.47,0.00036438,14]
[377586716,1754448707361,-400.93275927,0.00036438,14]
[377586717,1754448707371,-151.0,0.00036438,7]
[377586718,1754448707380,-151.0,0.00036438,7]
[377586719,1754448707390,-400.0,0.00036438,14]
[377586720,1754448707399,-400.0,0.00036438,14]
[377586721,1754448707408,-1042.07,0.00036438,14]
[377586722,1754448707418,-607.47,0.00036438,14]
[377586723,1754448707427,-400.0,0.00036438,14]
[377586724,1754448707437,-1387.34,0.00036438,14]
[377586725,1754448707447,-1608.62,0.00036438,14]
[377586726,1754448707456,-640.46,0.00036438,14]
[377586727,1754448707466,-1266.36,0.00036438,14]
[377586728,1754448707475,-400.0,0.00036438,14]
[377586729,1754448707485,-1198.83,0.00036438,14]
[377586730,1754448707494,-400.0,0.00036438,2]
[377586731,1754448707504,-850.06,0.00036438,14]
[377586732,1754448707514,-1040.96,0.00036438,14]
[377586733,1754448707523,-2213.68,0.00036438,14]
[377586734,1754448707532,-400.0,0.00036438,14]
[377586735,1754448707542,-400.0,0.00036438,14]
[377586736,1754448707551,-151.0,0.00036438,7]
[377586737,1754448707562,-400.0,0.00036438,14]
[377586738,1754448707571,-627.73,0.00036438,14]
[377586739,1754448707581,-151.0,0.00036438,7]
[377586740,1754448707591,-151.0,0.00036438,7]
[377586741,1754448707600,-400.0,0.00036438,14]
[377586742,1754448707610,-151.0,0.00036438,7]
[377586743,1754448707619,-471.56,0.00036438,14]
[377586744,1754448707628,-400.0,0.00036438,14]
[377586745,1754448707637,-511.19,0.00036438,14]
[377586746,1754448707647,-400.0,0.00036438,14]
[377586747,1754448707656,-400.0,0.00036438,14]
[377586748,1754448707666,-400.0,0.00036438,14]
[377586749,1754448707675,-400.0,0.00036438,14]
[377586750,1754448707685,-440.85,0.00036438,14]
[377586751,1754448707694,-860.58,0.00036438,14]
[377586752,1754448707703,-400.0,0.00036438,14]
[377586753,1754448707713,-1113.65,0.00036438,14]
[377586754,1754448707723,-400.0,0.00036438,14]
[377586755,1754448707733,-400.0,0.00036438,14]
[377586756,1754448707743,-400.0,0.00036438,14]
[377586757,1754448707752,-400.0,0.00036438,14]
[377586758,1754448707762,-400.0,0.00036438,14]
[377586759,1754448707772,-985.67,0.00036438,14]
[377586760,1754448707782,-400.0,0.00036438,14]
[377586761,1754448707792,-400.0,0.00036438,14]
[377586762,1754448707802,-523.26,0.00036438,14]
[377586763,1754448707812,-400.0,0.00036438,14]
[377586764,1754448707822,-400.0,0.00036438,14]
[377586765,1754448707831,-531.05,0.00036438,14]
[377586766,1754448707841,-1788.17,0.00036438,14]
[377586767,1754448707851,-400.0,0.00036438,14]
[377586768,1754448707865,-1913.41,0.00036438,14]
[377586769,1754448707875,-1243.8,0.00036438,14]
[377586770,1754448707885,-400.0,0.00036438,14]
[377586771,1754448707895,-400.0,0.00036438,14]
[377586772,1754448707906,-2195.18,0.00036438,14]
[377586773,1754448707916,-400.0,0.00036438,14]
[377586774,1754448707925,-973.74,0.00036438,14]
[377586775,1754448707935,-400.0,0.00036438,14]
[377586776,1754448707946,-400.0,0.00036438,14]
[377586777,1754448707956,-400.0,0.00036438,14]
[377586778,1754448707966,-400.0,0.00036438,14]
[377586779,1754448707976,-400.0,0.00036438,14]
[377586780,1754448707985,-511.74,0.00036438,14]
[377586781,1754448707995,-1237.93,0.00036438,14]
[377586782,1754448708005,-1927.1,0.00036438,14]
[377586783,1754448708015,-880.55,0.00036438,14]
[377586784,1754448708025,-1421.29,0.00036438,14]
[377586785,1754448708038,-1559.95,0.00036438,14]
[377586786,1754448708048,-400.0,0.00036438,14]
[377586787,1754448708059,-400.0,0.00036438,14]
[377586788,1754448708069,-400.0,0.00036438,14]
[377586789,1754448708079,-764.11,0.00036438,14]
[377586790,1754448708089,-832.23,0.00036438,14]
[377586791,1754448708099,-400.0,0.00036438,14]
[377586792,1754448708109,-1200.18,0.00036438,14]
[377586793,1754448708120,-400.0,0.00036438,14]
[377586794,1754448708132,-982.62,0.00036438,14]
[377586795,1754448708142,-851.23,0.00036438,14]
[377586796,1754448708152,-483.16,0.00036438,14]
[377586797,1754448708161,-400.0,0.00036438,14]
[377586798,1754448708171,-1009.21,0.00036438,14]
[377586799,1754448708182,-400.0,0.00036438,14]
[377586800,1754448708192,-400.0,0.00036438,14]
[377586801,1754448708201,-400.0,0.00036438,14]
[377586802,1754448708212,-1056.91,0.00036438,14]
[377586803,1754448708223,-454.78,0.00036438,14]
[377586804,1754448708233,-1461.35,0.00036438,14]
[377586805,1754448708244,-400.0,0.00036438,14]
[377586806,1754448708254,-519.19,0.00036438,14]
[377586807,1754448708265,-400.0,0.00036438,14]
[377586808,1754448708276,-1050.13,0.00036438,14]
[377586809,1754448708287,-400.0,0.00036438,14]
[377586810,1754448708298,-1907.53,0.00036438,14]
[377586811,1754448708308,-400.0,0.00036438,14]
[377586812,1754448708318,-400.0,0.00036438,14]
[377586813,1754448708328,-401.26502734,0.00036438,14]